fUSD/lending_fUSD_20250215
["ID","MTS","AMOUNT","RATE_DAILY","PERIOD"]
[353197315,1739643043629,-153.0,0.00012508,2]
[353197316,1739643043638,-153.0,0.00012508,2]
[353197317,1739643043647,-153.0,0.00012508,2]
[353197318,1739643043656,-153.0,0.00012508,2]
[353197319,1739643043666,-153.0,0.00012508,2]
[353197320,1739643043675,-153.0,0.00012508,2]
[353197321,1739643043685,-153.0,0.00012508,2]
[353197322,1739643043694,-153.0,0.00012508,2]
[353197323,1739643043703,-153.0,0.00012508,2]
[353197324,1739643043712,-153.0,0.00012508,2]
[353197325,1739643043722,-153.0,0.00012508,2]
[353197326,1739643043731,-153.0,0.00012508,2]
[353197327,1739643043741,-153.0,0.00012508,2]
[353197328,1739643043751,-153.0,0.00012508,2]
[353197329,1739643043761,-153.0,0.00012508,2]
[353197330,1739643043770,-153.0,0.00012508,2]
[353197331,1739643043780,-153.0,0.00012508,2]
[353197332,1739643043789,-153.0,0.00012508,2]
[353197333,1739643043798,-153.0,0.00012508,2]
[353197334,1739643043807,-153.0,0.00012508,2]
[353197335,1739643043817,-153.0,0.00012508,2]
[353197336,1739643043826,-153.0,0.00012508,2]
[353197337,1739643043835,-153.0,0.00012508,2]
[353197338,1739643043845,-153.0,0.00012508,2]
[353197339,1739643043854,-153.0,0.00012508,2]
[353197340,1739643043863,-153.0,0.00012508,2]
[353197341,1739643043872,-152.0,0.0001255,6]
[353197342,1739643043882,-648.27863966,0.00012551,2]
[353197343,1739643043891,-156.04846163,0.0001258,2]
[353197344,1739643043901,-3397.39,0.00012623,2]
[353197345,1739643043911,-202.0,0.0001268,2]
[353197346,1739643043921,-1976.9,0.00012683,2]
[353197347,1739643043930,-152.0,0.00012713,7]
[353197348,1739643043940,-156.04846152,0.00012723,2]
[353197349,1739643043953,-23900.0,0.00012776,2]
[353197350,1739643043962,-500.0,0.00012798,2]
[353197351,1739643043971,-1000.0,0.00012798,2]
[353197352,1739643043981,-1000.0,0.00012798,2]
[353197353,1739643043991,-156.04846152,0.00012866,2]
[353197354,1739643044000,-152.0,0.00012876,8]
[353197355,1739643044009,-291.88287861,0.0001288,2]
[353197356,1739643044019,-202.0,0.0001297,2]
[353197357,1739643044032,-550.0,0.00013,2]
[353197358,1739643044043,-156.04846152,0.00013009,2]
[353197359,1739643044053,-152.0,0.0001304,9]
[353197360,1739643044064,-1597.65,0.00013074,2]
[353197361,1739643044074,-166.66,0.00013083,2]
[353197362,1739643044084,-204.33,0.00013088,2]
[353197363,1739643044095,-1000.0,0.00013095,2]
[353197364,1739643044105,-464.27518301,0.00013123,2]
[353197365,1739643044114,-156.04846152,0.00013152,2]
[353197366,1739643044125,-152.0,0.00013203,10]
[353197367,1739643044135,-2574.163,0.0001323,2]
[353197368,1739643044146,-201.242,0.0001323,2]
[353197369,1739643044155,-174.75,0.00013247,2]
[353197370,1739643044165,-180.9,0.0001325,2]
[353197371,1739643044175,-202.0,0.0001326,2]
[353197372,1739643044185,-500.0,0.0001326,2]
[353197373,1739643044194,-640.0,0.00013268,2]
[353197374,1739643044203,-7958.69,0.00013273,2]
[353197375,1739643044212,-500.0,0.00013289,2]
[353197376,1739643044223,-176.58,0.00013311,2]
[353197377,1739643044232,-3880.99,0.00013359,2]
[353197378,1739643044242,-152.0,0.00013366,11]
[353197379,1739643044251,-150.0,0.00013463,2]
[353197380,1739643044260,-150.0,0.00013463,2]
[353197381,1739643044269,-150.0,0.00013463,2]
[353197382,1739643044278,-150.00000001,0.00013463,2]
[353197383,1739643044287,-150.0,0.00013463,2]
[353197384,1739643044298,-152.0,0.00013529,12]
[353197385,1739643044309,-202.0,0.0001355,2]
[353197386,1739643044318,-150.0,0.00013613,2]
[353197387,1739643044327,-150.0,0.0001365,2]
[353197388,1739643044336,-152.0,0.00013693,13]
[353197389,1739643044345,-151.472407,0.00013698,2]
[353197390,1739643044356,-153.620153,0.00013698,2]
[353197391,1739643044366,-162.984811,0.00013698,2]
[353197392,1739643044376,-162.984811,0.00013698,2]
[353197393,1739643044386,-157.769189,0.00013698,2]
[353197394,1739643044395,-156.067019,0.00013698,2]
[353197395,1739643044404,-173.954653,0.00013698,2]
[353197396,1739643044414,-160.450791,0.00013698,2]
[353197397,1739643044424,-159.212271,0.00013698,2]
[353197398,1739643044434,-150.503094,0.00013698,2]
[353197399,1739643044443,-173.954654,0.00013698,2]
[353197400,1739643044453,-173.954652,0.00013698,2]
[353197401,1739643044462,-200.0,0.00013699,2]
[353197402,1739643044471,-165.28,0.00013699,2]
[353197403,1739643044480,-500.0,0.00013699,2]
[353197404,1739643044490,-4000.0,0.00013699,2]
[353197405,1739643044499,-150.0,0.00013762,2]
[353197406,1739643044508,-162.984811,0.0001378,2]
[353197407,1739643044518,-159.212271,0.0001378,2]
[353197408,1739643044527,-202.0,0.0001383,2]
[353197409,1739643044536,-150.0,0.00013837,2]
[353197410,1739643044545,-150.0,0.00013837,2]
[353197411,1739643044554,-152.0,0.00013856,14]
[353197412,1739643044564,-162.984811,0.00013863,2]
[353197413,1739643044572,-159.212271,0.00013863,2]
[353197414,1739643044582,-150.0,0.000139,2]
[353197415,1739643044591,-150.0,0.00013912,2]
[353197416,1739643044600,-162.984811,0.00013945,2]
[353197417,1739643044609,-554.54346796,0.00014,2]
[353197418,1739643044619,-152.0,0.00014019,15]
[353197419,1739643044628,-150.0,0.00014024,2]
[353197420,1739643044637,-162.984811,0.00014027,2]
[353197421,1739643044647,-159.212271,0.00014027,2]
[353197422,1739643044656,-150.0,0.00014061,2]
[353197423,1739643044665,-162.984811,0.00014109,2]
[353197424,1739643044674,-159.212271,0.00014109,2]
[353197425,1739643044683,-202.0,0.0001412,2]
[353197426,1739643044692,-500.0,0.00014167,2]
[353197427,1739643044701,-512.20393647,0.00014167,2]
[353197428,1739643044710,-500.0,0.00014167,2]
[353197429,1739643044719,-1000.0,0.00014168,2]
[353197430,1739643044728,-1000.0,0.00014168,2]
[353197431,1739643044906,-504.82,0.00014176,2]
[353197432,1739643044916,-152.0,0.00014182,16]
[353197433,1739643044926,-162.984811,0.00014191,2]
[353197434,1739643044935,-159.212271,0.00014191,2]
[353197435,1739643044945,-150.0,0.00014211,2]
[353197436,1739643044958,-150.0,0.00014211,2]
[353197437,1739643044968,-150.0,0.00014211,2]
[353197438,1739643044977,-500.0,0.00014249,2]
[353197439,1739643044987,-199.4,0.00014249,2]
[353197440,1739643044998,-162.984811,0.00014273,2]
[353197441,1739643045008,-500.0,0.00014331,2]
[353197442,1739643045018,-152.0,0.00014346,17]
[353197443,1739643045028,-150.0,0.00014361,2]
[353197444,1739643045037,-150.0,0.00014398,2]
[353197445,1739643045047,-202.0,0.0001441,2]
[353197446,1739643045057,-201.0,0.0001441,2]
[353197447,1739643045066,-321.46,0.00014413,2]
[353197448,1739643045076,-152.0,0.00014509,18]
[353197449,1739643045085,-150.0,0.0001451,2]
[353197450,1739643045095,-2640.38,0.0001452,3]
[353197451,1739643045104,-1000.0,0.00014563,2]
[353197452,1739643045113,-522.8,0.00014582,2]
[353197453,1739643045122,-617.98214982,0.00014582,2]
[353197454,1739643045131,-500.0,0.00014582,2]
[353197455,1739643045142,-522.62,0.00014582,2]
[353197456,1739643045152,-589.19,0.00014582,2]
[353197457,1739643045161,-500.0,0.00014582,2]
[353197458,1739643045171,-500.0,0.00014582,2]
[353197459,1739643045181,-524.47,0.00014582,2]
[353197460,1739643045191,-500.0,0.00014582,2]
[353197461,1739643045200,-500.0,0.00014582,2]
[353197462,1739643045210,-500.0,0.00014582,2]
[353197463,1739643045220,-500.0,0.00014582,2]
[353197464,1739643045230,-500.0,0.00014582,2]
[353197465,1739643045240,-500.0,0.00014582,2]
[353197466,1739643045250,-500.0,0.00014582,2]
[353197467,1739643045259,-500.0,0.00014582,2]
[353197468,1739643045269,-500.0,0.00014582,2]
[353197469,1739643045278,-646.91,0.00014582,2]
[353197470,1739643045287,-500.0,0.00014582,2]
[353197471,1739643045297,-150.0,0.00014585,2]
[353197472,1739643045306,-150.0,0.00014585,2]
[353197473,1739643045315,-205.0,0.000146,2]
[353197474,1739643045324,-1200.79,0.00014616,2]
[353197475,1739643045333,-150.0,0.0001466,2]
[353197476,1739643045343,-522.8,0.00014664,2]
[353197477,1739643045352,-500.0,0.00014664,2]
[353197478,1739643045362,-236.1,0.00014664,2]
[353197479,1739643045372,-342.22,0.00014664,2]
[353197480,1739643045382,-175.42,0.00014664,2]
[353197481,1739643045392,-500.0,0.00014664,2]
[353197482,1739643045402,-461.36,0.00014664,2]
[353197483,1739643045412,-646.91,0.00014664,2]
[353197484,1739643045422,-203.02,0.00014664,2]
[353197485,1739643045431,-205.0,0.0001467,2]
[353197486,1739643045442,-152.0,0.00014672,19]
[353197487,1739643045451,-1061.95328454,0.0001468,2]
[353197488,1739643045460,-1015.48994215,0.0001468,2]
[353197489,1739643045469,-1042.22631548,0.0001468,2]
[353197490,1739643045478,-202.0,0.000147,2]
[353197491,1739643045489,-201.0,0.000147,2]
[353197492,1739643045499,-382.8728835,0.00014717,2]
[353197493,1739643045508,-1000.0,0.00014723,2]
[353197494,1739643045518,-493.59,0.00014727,2]
[353197495,1739643045528,-205.0,0.0001473,2]
[353197496,1739643045537,-1000.0,0.00014732,2]
[353197498,1739643045547,-1000.0,0.00014733,2]
[353197500,1739643045556,-150.0,0.00014745,2]
[353197502,1739643045565,-150.0,0.00014745,2]
[353197503,1739643045575,-522.8,0.00014747,2]
[353197504,1739643045585,-500.0,0.00014747,2]
[353197505,1739643045594,-500.0,0.00014747,2]
[353197506,1739643045605,-646.91,0.00014747,2]
[353197507,1739643045615,-1000.0,0.00014768,2]
[353197508,1739643045625,-150.0,0.0001477,2]
[353197509,1739643045635,-150.0,0.00014772,2]
[353197510,1739643045645,-150.0,0.00014773,2]
[353197511,1739643045658,-1251.27324315,0.00014775,2]
[353197512,1739643045668,-150.0,0.00014793,2]
[353197513,1739643045678,-2640.38,0.00014794,3]
[353197514,1739643045688,-1665.0,0.000148,2]
[353197515,1739643045698,-205.0,0.000148,2]
[353197516,1739643045707,-4553.66770587,0.000148,2]
[353197517,1739643045717,-150.0,0.00014804,2]
[353197518,1739643045727,-150.0,0.00014806,2]
[353197519,1739643045737,-150.0,0.00014809,2]
[353197520,1739643045747,-4553.66770585,0.0001481,2]
[353197521,1739643045757,-150.0,0.00014811,2]
[353197522,1739643045767,-150.0,0.00014816,2]
[353197523,1739643045777,-150.0,0.0001482,2]
[353197524,1739643045787,-4553.66770585,0.0001482,2]
[353197525,1739643045796,-150.0,0.00014827,2]
[353197526,1739643045806,-522.8,0.00014829,2]
[353197527,1739643045815,-500.0,0.00014829,2]
[353197528,1739643045825,-500.0,0.00014829,2]
[353197529,1739643045834,-500.0,0.00014829,2]
[353197530,1739643045843,-646.91,0.00014829,2]
[353197531,1739643045853,-4553.66770585,0.0001483,2]
[353197532,1739643045862,-152.0,0.00014835,20]
[353197533,1739643045871,-150.0,0.00014838,2]
[353197534,1739643045881,-316.71848155,0.00014839,2]
[353197535,1739643045891,-4553.66770585,0.0001484,2]
[353197536,1739643045902,-150.0,0.00014843,2]
[353197537,1739643045911,-150.0,0.00014849,2]
[353197538,1739643045921,-4553.66770585,0.0001485,2]
[353197539,1739643045931,-150.0,0.00014851,2]
[353197540,1739643045941,-150.0,0.00014854,2]
[353197541,1739643045955,-205.0,0.0001486,2]
[353197542,1739643045965,-202.0,0.0001486,2]
[353197543,1739643045975,-4553.66770585,0.0001486,2]
[353197544,1739643045985,-159.73955405,0.00014864,2]
[353197545,1739643045995,-500.0,0.00014865,2]
[353197546,1739643046004,-200.0,0.00014865,2]
[353197547,1739643046014,-150.0,0.00014867,2]
[353197548,1739643046024,-150.0,0.00014868,2]
[353197549,1739643046034,-33233.9081204,0.0001487,3]
[353197550,1739643046043,-4553.66770585,0.0001487,2]
[353197551,1739643046054,-153.60690226,0.00014871,2]
[353197552,1739643046063,-174.94876258,0.00014871,2]
[353197553,1739643046073,-150.0,0.00014873,2]
[353197554,1739643046083,-537.0464024,0.00014879,2]
[353197555,1739643046092,-513.87,0.00014879,2]
[353197556,1739643046101,-500.0,0.00014879,2]
[353197557,1739643046111,-500.0,0.0001488,2]
[353197558,1739643046121,-501.66708305,0.0001488,2]
[353197559,1739643046130,-500.0,0.0001488,2]
[353197560,1739643046139,-534.84,0.0001488,2]
[353197561,1739643046150,-500.0,0.0001488,2]
[353197562,1739643046159,-500.0,0.0001488,2]
[353197563,1739643046168,-500.0,0.0001488,2]
[353197564,1739643046177,-500.0,0.0001488,2]
[353197565,1739643046187,-510.52090076,0.0001488,2]
[353197566,1739643046196,-500.0,0.0001488,2]
[353197567,1739643046206,-525.24665802,0.0001488,2]
[353197568,1739643046215,-500.0,0.0001488,2]
[353197569,1739643046225,-500.0,0.0001488,2]
[353197570,1739643046234,-500.0,0.0001488,2]
[353197571,1739643046243,-649.18551669,0.0001488,2]
[353197572,1739643046253,-501.35915371,0.0001488,2]
[353197573,1739643046262,-500.0,0.0001488,2]
[353197574,1739643046272,-548.00675095,0.0001488,2]
[353197575,1739643046282,-500.0,0.0001488,2]
[353197576,1739643046292,-500.0,0.0001488,2]
[353197577,1739643046302,-500.0,0.0001488,2]
[353197578,1739643046311,-500.0,0.0001488,2]
[353197579,1739643046320,-500.0,0.0001488,2]
[353197580,1739643046330,-284.31008699,0.0001488,2]
[353197581,1739643046339,-500.0,0.0001488,2]
[353197582,1739643046348,-500.0,0.0001488,2]
[353197583,1739643046358,-500.0,0.0001488,2]
[353197584,1739643046367,-500.0,0.0001488,2]
[353197585,1739643046376,-500.0,0.0001488,2]
[353197586,1739643046385,-500.0,0.0001488,2]
[353197587,1739643046394,-500.0,0.0001488,2]
[353197588,1739643046405,-500.0,0.0001488,2]
[353197589,1739643046414,-502.51348251,0.0001488,2]
[353197590,1739643046424,-500.0,0.0001488,2]
[353197591,1739643046434,-391.90034565,0.0001488,2]
[353197592,1739643046443,-500.0,0.0001488,2]
[353197593,1739643046453,-204.41726877,0.0001488,2]
[353197594,1739643046463,-500.0,0.0001488,2]
[353197595,1739643046472,-500.0,0.0001488,2]
[353197596,1739643046482,-500.0,0.0001488,2]
[353197597,1739643046492,-500.0,0.0001488,2]
[353197598,1739643046502,-500.0,0.0001488,2]
[353197599,1739643046511,-500.0,0.0001488,2]
[353197600,1739643046521,-500.0,0.0001488,2]
[353197601,1739643046530,-500.0,0.0001488,2]
[353197602,1739643046540,-500.0,0.0001488,2]
[353197603,1739643046549,-500.0,0.0001488,2]
[353197604,1739643046559,-500.0,0.0001488,2]
[353197605,1739643046568,-500.0,0.0001488,2]
[353197606,1739643046578,-500.0,0.0001488,2]
[353197607,1739643046587,-245.26611865,0.0001488,2]
[353197608,1739643046596,-500.0,0.0001488,2]
[353197609,1739643046606,-500.0,0.0001488,2]
[353197610,1739643046616,-500.0,0.0001488,2]
[353197611,1739643046625,-500.0,0.0001488,2]
[353197612,1739643046635,-340.32127193,0.0001488,2]
[353197613,1739643046644,-500.0,0.0001488,2]
[353197614,1739643046655,-500.0,0.0001488,2]
[353197615,1739643046665,-500.0,0.0001488,2]
[353197616,1739643046674,-500.0,0.0001488,2]
[353197617,1739643046684,-500.0,0.0001488,2]
[353197618,1739643046694,-500.0,0.0001488,2]
[353197619,1739643046704,-500.0,0.0001488,2]
[353197620,1739643046713,-500.0,0.0001488,2]
[353197621,1739643046723,-500.0,0.0001488,2]
[353197622,1739643046732,-500.0,0.0001488,2]
[353197623,1739643046742,-500.0,0.0001488,2]
[353197624,1739643046752,-505.25493776,0.0001488,2]
[353197625,1739643046761,-500.0,0.0001488,2]
[353197626,1739643046770,-523.67620465,0.0001488,2]
[353197627,1739643046780,-500.0,0.0001488,2]
[353197628,1739643046790,-500.0,0.0001488,2]
[353197629,1739643046799,-500.0,0.0001488,2]
[353197630,1739643046809,-500.0,0.0001488,2]
[353197631,1739643046819,-474.3,0.0001488,2]
[353197632,1739643046829,-500.0,0.0001488,2]
[353197633,1739643046838,-500.0,0.0001488,2]
[353197634,1739643046847,-500.0,0.0001488,2]
[353197635,1739643046858,-500.0,0.0001488,2]
[353197636,1739643046867,-500.0,0.0001488,2]
[353197637,1739643046877,-500.0,0.0001488,2]
[353197638,1739643046886,-500.0,0.0001488,2]
[353197639,1739643046896,-196.94912069,0.0001488,2]
[353197640,1739643046906,-500.0,0.0001488,2]
[353197641,1739643046915,-500.0,0.0001488,2]
[353197642,1739643046925,-500.0,0.0001488,2]
[353197643,1739643046935,-601.66,0.0001488,2]
[353197644,1739643046944,-500.0,0.0001488,2]
[353197645,1739643046956,-500.0,0.0001488,2]
[353197646,1739643046966,-500.0,0.0001488,2]
[353197647,1739643046975,-500.0,0.0001488,2]
[353197648,1739643046985,-500.0,0.0001488,2]
[353197649,1739643046995,-4553.66770585,0.0001488,2]
[353197650,1739643047004,-500.0,0.0001488,2]
[353197651,1739643047013,-611.60032343,0.0001488,2]
[353197652,1739643047023,-500.0,0.0001488,2]
[353197653,1739643047034,-500.0,0.0001488,2]
[353197654,1739643047044,-500.68209603,0.0001488,2]
[353197655,1739643047054,-150.0,0.00014884,2]
[353197656,1739643047064,-150.0,0.00014886,2]
[353197657,1739643047074,-281.87456209,0.0001489,15]
[353197658,1739643047083,-194.56864723,0.0001489,2]
[353197659,1739643047093,-188.59300446,0.0001489,2]
[353197660,1739643047102,-203.05995541,0.0001489,2]
[353197661,1739643047112,-4553.66770585,0.0001489,2]
[353197662,1739643047122,-150.0,0.00014893,2]
[353197663,1739643047132,-5000.0,0.000149,2]
[353197664,1739643047141,-203.8,0.000149,2]
[353197665,1739643047151,-150.0,0.00014903,2]
[353197666,1739643047160,-150.0,0.00014908,2]
[353197667,1739643047170,-150.0,0.0001491,2]
[353197668,1739643047179,-34.76735768,0.00014911,2]
[353197669,1739643047376,-500.0,0.0001488,2]
[353197670,1739643047386,-500.0,0.0001488,2]
[353197671,1739643047395,-488.03264232,0.00014911,2]
[353197672,1739643047405,-80.28204335,0.00014911,2]
[353197673,1739643047417,-419.71795665,0.00014911,2]
[353197674,1739643047427,-50.28204335,0.00014911,2]
[353197675,1739643047439,-449.71795665,0.00014911,2]
[353197676,1739643047448,-468.28204335,0.00014911,2]
[353197677,1739643047460,-178.62795665,0.00014911,2]
[353197678,1739643047470,-150.0,0.00014918,2]
[353197679,1739643047479,-150.0,0.00014923,2]
[353197680,1739643047488,-640.0,0.00014926,2]
[353197681,1739643047497,-205.0,0.0001493,2]
[353197682,1739643047508,-202.0,0.0001493,2]
[353197683,1739643047518,-143.57358891,0.00014932,2]
[353197684,1739643047530,-418.18435819,0.00014932,2]
[353197685,1739643047542,-750.2420529,0.00014932,2]
[353197686,1739643047551,-150.0,0.00014932,2]
[353197687,1739643047562,-150.0,0.00014936,2]
[353197688,1739643047572,-563.46765337,0.00014936,2]
[353197689,1739643047584,-436.53234663,0.00014936,2]
[353197690,1739643047594,-66467.8162408,0.00014939,3]
[353197691,1739643047604,-14682.12533567,0.0001494,3]
[353197692,1739643047645,-8865.2569211,0.0001494,3]
[353197693,1739643047656,-1037.75708018,0.0001494,3]
[353197694,1739643047668,-701.95942781,0.0001494,3]
[353197739,1739644231969,-300.0,8.835e-05,2]
[353197740,1739644231979,-175.57239844,8.836e-05,2]
[353197741,1739644232024,-9824.42760156,8.836e-05,2]
[353197742,1739644232034,-16791.3546,8.836e-05,2]
[353197743,1739644232043,-150.0,8.843e-05,2]
[353197744,1739644232052,-150.0,8.85e-05,2]
[353197745,1739644232061,-2500.0,8.851e-05,2]
[353197746,1739644232070,-1000.0,8.851e-05,2]
[353197747,1739644232080,-1917.9105,8.973e-05,2]
[353197748,1739644232089,-1298.58,9.042e-05,2]
[353197749,1739644232099,-14088.22172386,9.639e-05,2]
[353197750,1739644232109,-407.0,9.718e-05,2]
[353197751,1739644232119,-150.0,9.719e-05,2]
[353197752,1739644232128,-255.0,9.735e-05,2]
[353197753,1739644232138,-500.0,9.999e-05,2]
[353197754,1739644232148,-500.0,9.999e-05,2]
[353197755,1739644232158,-426.79709903,9.999e-05,2]
[353197756,1739644232167,-500.0,9.999e-05,2]
[353197757,1739644232176,-500.0,9.999e-05,2]
[353197758,1739644232185,-175.25457586,9.999e-05,2]
[353197759,1739644232195,-500.0,9.999e-05,2]
[353197761,1739644232206,-500.0,9.999e-05,2]
[353197763,1739644232215,-221.93713586,9.999e-05,2]
[353197765,1739644232225,-17928.67,9.999e-05,2]
[353197767,1739644232234,-584813.74459251,0.0001,2]
[353197769,1739644232243,-47846.10684446,0.0001,2]
[353197771,1739644232252,-998.15,0.00010011,2]
[353197773,1739644232262,-900.0,0.00010058,2]
[353197775,1739644232270,-500.0,0.00010058,2]
[353197777,1739644232280,-1000.0,0.00010058,2]
[353197779,1739644232289,-150.92,0.00010137,2]
[353197781,1739644232299,-3397.39,0.00010544,2]
[353197783,1739644232309,-433.0,0.00010709,2]
[353197787,1739644232319,-447.60378691,0.00010753,2]
[353197794,1739644232345,-1404.81621309,0.00010753,2]
[353197797,1739644232358,-172.548647,0.00010942,2]
[353197801,1739644232368,-502.47,0.00010958,2]
[353197804,1739644232377,-617.98214982,0.00010958,2]
[353197807,1739644232387,-455.0,0.00010958,2]
[353197810,1739644232396,-522.62,0.00010958,2]
[353197813,1739644232406,-589.19,0.00010958,2]
[353197816,1739644232416,-500.0,0.00010958,2]
[353197819,1739644232426,-500.0,0.00010958,2]
[353197821,1739644232435,-500.0,0.00010958,2]
[353197824,1739644232445,-500.0,0.00010958,2]
[353197827,1739644232456,-500.0,0.00010958,2]
[353197830,1739644232466,-500.0,0.00010958,2]
[353197833,1739644232475,-500.0,0.00010958,2]
[353197836,1739644232485,-500.0,0.00010958,2]
[353197839,1739644232495,-500.0,0.00010958,2]
[353197841,1739644232504,-500.0,0.00010958,2]
[353197844,1739644232513,-500.0,0.00010958,2]
[353197846,1739644232523,-500.0,0.00010958,2]
[353197848,1739644232532,-500.0,0.00010958,2]
[353197850,1739644232543,-500.0,0.00010958,2]
[353197852,1739644232553,-500.0,0.00010958,2]
[353197854,1739644232562,-500.0,0.00010958,2]
[353197856,1739644232572,-500.0,0.00010958,2]
[353197858,1739644232581,-500.0,0.00010958,2]
[353197860,1739644232591,-500.0,0.00010958,2]
[353197863,1739644232601,-500.0,0.00010958,2]
[353197865,1739644232610,-500.0,0.00010958,2]
[353197867,1739644232630,-500.0,0.00010958,2]
[353197869,1739644232640,-500.0,0.00010958,2]
[353197872,1739644232650,-500.0,0.00010958,2]
[353197876,1739644232891,-501.66708305,0.00010958,2]
[353197877,1739644232900,-619.95,0.00010958,2]
[353197878,1739644232910,-500.0,0.00010958,2]
[353197879,1739644232920,-500.0,0.00010958,2]
[353197880,1739644232929,-500.0,0.00010958,2]
[353197881,1739644232938,-547.91,0.00010958,2]
[353197882,1739644232947,-503.04734901,0.00010958,2]
[353197883,1739644232958,-500.0,0.00010958,2]
[353197884,1739644232967,-500.0,0.00010958,2]
[353197885,1739644232976,-500.0,0.00010958,2]
[353197886,1739644232986,-500.0,0.00010958,2]
[353197887,1739644232995,-200.0,0.00010972,2]
[353197888,1739644233004,-200.0,0.00010993,2]
[353197889,1739644233014,-200.0,0.00010999,2]
[353197890,1739644233024,-250.0,0.00011019,2]
[353197891,1739644233033,-502.47,0.00011041,2]
[353197892,1739644233043,-500.0,0.00011041,2]
[353197893,1739644233052,-500.0,0.00011041,2]
[353197894,1739644233061,-500.0,0.00011041,2]
[353197896,1739644233071,-524.47,0.00011041,2]
[353197897,1739644233081,-500.0,0.00011041,2]
[353197899,1739644233091,-531.78,0.00011041,2]
[353197901,1739644233101,-236.1,0.00011041,2]
[353197902,1739644233111,-342.22,0.00011041,2]
[353197904,1739644233120,-175.42,0.00011041,2]
[353197906,1739644233130,-500.0,0.00011041,2]
[353197908,1739644233140,-511.2033621,0.00011041,2]
[353197909,1739644233150,-500.0,0.00011041,2]
[353197912,1739644233160,-500.0,0.00011041,2]
[353197913,1739644233171,-461.36,0.00011041,2]
[353197915,1739644233180,-500.0,0.00011041,2]
[353197917,1739644233191,-500.0,0.00011041,2]
[353197919,1739644233202,-619.95,0.00011041,2]
[353197922,1739644233215,-500.0,0.00011041,2]
[353197924,1739644233226,-203.02,0.00011041,2]
[353197925,1739644233235,-500.0,0.00011041,2]
[353197927,1739644233245,-519.28524761,0.00011094,2]
[353197929,1739644233255,-4553.66770587,0.00011099,2]
[353197932,1739644233265,-4553.66770585,0.00011099,2]
[353197934,1739644233275,-4553.66770585,0.00011099,2]
[353197936,1739644233286,-1271.65011658,0.00011099,2]
[353197938,1739644233296,-1271.65011653,0.00011099,2]
[353197940,1739644233306,-1271.65011653,0.00011099,2]
[353197941,1739644233315,-10527.46265166,0.00011117,2]
[353197943,1739644233325,-502.47,0.00011123,2]
[353197945,1739644233335,-500.0,0.00011123,2]
[353197947,1739644233345,-500.0,0.00011123,2]
[353197949,1739644233357,-500.0,0.00011123,2]
[353197951,1739644233367,-500.0,0.00011123,2]
[353197953,1739644233377,-488.39,0.00011123,2]
[353197955,1739644233387,-619.95,0.00011123,2]
[353197957,1739644233397,-614.31,0.00011123,2]
[353197959,1739644233407,-502.47,0.00011205,2]
[353197961,1739644233417,-500.0,0.00011205,2]
[353197963,1739644233427,-500.0,0.00011205,2]
[353197965,1739644233436,-500.0,0.00011205,2]
[353197967,1739644233446,-500.0,0.00011205,2]
[353197969,1739644233457,-619.95,0.00011205,2]